Cogmind - Beta 9.4 @@@ ROGUE MODE // 2020.03.21 @ 23:09:43 Player: Valguris Result: Destroyed by NK-0LA with NK-0LA's Tesla Doomcannon Performance ------------- Evolutions (1) 500 Regions Visited (6) 1200 Robots Destroyed (114) 570 Value Destroyed (2436) 2436 Prototype IDs (7) 140 Alien Tech Used (0) 0 Bonus (-1020) -1020 TOTAL SCORE: 3826 Bonus ------- High Alert Combat Kills 196 Friendly Fire -1216 Cogmind --------- Core Integrity 0/400 Matter 18/300 Energy 56/100 System Corruption 8% Temperature Cool (0) Movement Rolling (120) Ox3 Location -8/Mines Parts ------- > --- POWER (1) -------- (None) > --- PROPULSION (2) --- Armored Wheel Armored Wheel > --- UTILITY (4) ------ Humpback Hardened Light Armor Plating > --- WEAPON (2) ------- Particle Cannon Shotgun > --- INVENTORY (24) --- Heavy Ion Engine Cooling System Large Storage Unit Large Storage Unit High-capacity Storage Unit Humpback Humpback Humpback Experimental Sensor Array Advanced Beam Cannon Light Cannon EMP Blaster Grenade Launcher Peak State ------------ > --- POWER ------------ Heavy Ion Engine > --- PROPULSION ------- Advanced Treads Advanced Treads > --- UTILITY ---------- Advanced Heat Sink Large Storage Unit High-capacity Storage Unit Reflective Plating > --- WEAPON ----------- Improved Medium Laser Advanced Beam Cannon > --- INVENTORY -------- Heavy Ion Engine Heavy Ion Engine Heavy Ion Engine Advanced Treads Advanced Treads Armored Wheel Cooling System Large Storage Unit Experimental Sensor Array Armor Integrity Analyzer Hardened Light Armor Plating Light EM Pulse Cannon Heavy Assault Rifle Shotgun Shotgun Grenade Launcher Grenade Launcher Mining Laser [Rating: 29] Favorites ----------- Power Heavy Ion Engine Engine Heavy Ion Engine Power Core Light Nuclear Core Propulsion Advanced Treads Treads Advanced Treads Wheel Armored Wheel Utility Large Storage Unit Device Cooling System Storage Large Storage Unit Processor Armor Integrity Analyzer Protection Hardened Light Armor Plating Weapon Shotgun Energy Gun Improved Medium Laser Energy Cannon Advanced Beam Cannon Ballistic Gun Shotgun Launcher Grenade Launcher Special Weapon Mining Laser Build | -11 -10 -10 -9 -9 -9 -8 ------- Run | Scr Mat Min Mat Min Exi Min Slots Evolved 2 | . . . 2 . . . Power . | . . . . . . . Propulsion . | . . . . . . . Utility 2 | . . . 2 . . . Weapon . | . . . . . . . Parts Attached 93 | 7 9 5 42 6 19 5 Power 11 | 1 2 . 6 . 2 . Engine 10 | 1 2 . 5 . 2 . Core 1 | . . . 1 . . . Reactor . | . . . . . . . Propulsion 11 | 2 . . 5 . 4 . Treads 9 | 2 . . 5 . 2 . Leg . | . . . . . . . Wheel 2 | . . . . . 2 . Hover . | . . . . . . . Flight . | . . . . . . . Utility 23 | 2 2 . 8 3 6 2 Device 6 | . . . 2 2 2 . Storage 6 | 2 2 . 1 . 1 . Processor 1 | . . . . . 1 . Hackware . | . . . . . . . Protection 10 | . . . 5 1 2 2 Artifact . | . . . . . . . Weapon 48 | 2 5 5 23 3 7 3 Energy Gun 12 | . 1 3 7 . 1 . Energy Cannon 6 | . . . 2 1 1 2 Ballistic Gun 18 | 2 2 1 8 1 3 1 Ballistic Cannon . | . . . . . . . Launcher 11 | . 2 1 5 1 2 . Special Weapon 1 | . . . 1 . . . Impact Weapon . | . . . . . . . Slashing Weapon . | . . . . . . . Piercing Weapon . | . . . . . . . Special Melee Weapon . | . . . . . . . Unidentified Prototypes 4 | . . . 4 . . . Parts Lost 23 | . 1 2 6 2 9 3 Power 3 | . 1 . . . 2 . Propulsion 7 | . . . 3 . 4 . Utility 4 | . . . 1 2 . 1 Weapon 9 | . . 2 2 . 3 2 Highest Loss Streak 3 | . 1 1 3 1 3 3 Average Slot Usage (%) 94 | . 99 99 98 99 76 85 Engine 11 | . 13 14 9 11 11 8 Treads 23 | . 28 28 21 22 19 . Device 5 | . . . 6 10 9 . Storage 23 | . 28 28 22 22 16 11 Protection 8 | . . . 13 11 10 11 Energy Gun 5 | . 3 6 11 . . 11 Energy Cannon 2 | . . . 3 6 . 6 Ballistic Gun 8 | . 20 8 6 13 1 . Launcher 3 | . 3 12 1 1 1 4 Naked Turns . | . . . . . . . Heaviest Build 103 | 16 41 40 68 70 100 103 Greatest Support 44 | 40 40 40 44 44 44 24 Greatest Overweight (x) 8 | . 1 . 1 1 8 4 Average Overweight (x) . | . . . . 1 1 3 Largest Inventory Capacity 38 | 8 16 16 18 18 38 24 Average Capacity 17 | 5 15 16 16 18 20 24 Most Carried 24 | 6 16 16 18 18 24 19 Average Carried 15 | 3 12 15 16 16 18 16 Final Capacity 24 | 8 16 16 18 18 24 24 Final Carried 18 | 6 16 16 18 17 15 16 Class Distribution -------------------- 87% | Mutant 9% | Hauler-Mutant 3% | Scavenger-Mutant Dominant Class ---------------- Mutant | -10/Materials Mutant | -10/Mines Mutant | -9/Materials Mutant | -9/Mines Mutant | -9/Exiles Hauler-Mutant | -8/Mines Resources | -11 -10 -10 -9 -9 -9 -8 ----------- Run | Scr Mat Min Mat Min Exi Min Matter Collected 1946 | 290 330 194 760 224 98 50 Remotely . | . . . . . . . Salvage Created 3041 | 66 681 243 1906 113 32 . Parts 183 | 3 49 10 118 3 . . Haulers Intercepted 8 | . 2 . 6 . . . Recyclers Shooed 1 | . . . 1 . . . Parts Field Recycled . | . . . . . . . Retrieved Matter . | . . . . . . . Parts Self-Destructed . | . . . . . . . Prevented . | . . . . . . . Kills | -11 -10 -10 -9 -9 -9 -8 ------- Run | Scr Mat Min Mat Min Exi Min Combat Hostiles Destroyed 84 | . 19 8 44 7 6 . Guns 30 | . 10 . 18 2 . . Cannons 11 | . . . 9 2 . . AOE 43 | . 9 8 17 3 6 . Classes Destroyed 15 | 1 6 . 6 2 . . Worker 5 | . 1 . 3 1 . . Builder 4 | . 1 1 2 . . . Tunneler 1 | . . . 1 . . . Hauler 8 | . 2 . 6 . . . Recycler 4 | 1 1 1 1 . . . Mechanic 1 | . . . 1 . . . Watcher 5 | . 2 . 3 . . . Swarmer 19 | . 6 6 7 . . . Grunt 41 | . 13 2 26 . . . Brawler 3 | . . . 3 . . . Duelist 1 | . . . 1 . . . Protector 1 | . . . 1 . . . Sentry 6 | . . . 6 . . . Demolisher 2 | . . . . 2 . . Assembled 12 | . . . . 5 7 . Best Kill Streak 10 | 1 8 3 10 4 5 . Combat Bots Only 7 | . 7 3 7 4 5 . Max Kills in Single Turn 4 | 1 4 2 3 1 2 . Gunslinging . | . . . . . . . Exploded 3 | . 3 2 3 1 2 . Melee . | . . . . . . . Uniques/NPCs Destroyed 1 | . . 1 . . . . YI-UF0 (-10/Mines) Combat | -11 -10 -10 -9 -9 -9 -8 -------- Run | Scr Mat Min Mat Min Exi Min Damage Taken 3827 | . 555 162 1181 380 1276 273 Core 564 | . 126 27 184 20 153 54 Absorbed by Shields . | . . . . . . . Core Remaining (%) 69 | 100 . 38 . . . . Volleys Fired 287 | 5 61 23 128 19 51 . Largest 2 | 2 2 2 2 2 2 . Hottest 124 | 40 70 70 124 91 56 . Shots Fired 452 | 10 112 33 216 29 52 . Gun 288 | 10 102 20 139 16 1 . Cannon 69 | . . . 49 7 13 . Launcher 88 | . 10 13 21 6 38 . Special 7 | . . . 7 . . . Kinetic 149 | 10 73 10 39 16 1 . Thermal 202 | . 29 10 156 7 . . Explosive 54 | . 10 13 21 6 4 . Electromagnetic 47 | . . . . . 47 . Robot Hit Streak 14 | 6 7 8 14 7 6 . Robot Miss Streak 6 | 1 2 4 6 3 2 . Penetration Max . | . . . . . . . Secondary Targets 3 | . 2 . 1 . . . Max Gunslinging Chain 1 | . 1 . 1 . . . Shots Hit Robots 270 | 8 67 15 130 19 31 . Core Hits 206 | 2 40 22 97 18 27 . Critical Hits 8 | . . . 7 1 . . Critical Kills 4 | . . . 4 . . . Critical Parts Destroyed 4 | . . . 3 1 . . Melee Attacks . | . . . . . . . Impact . | . . . . . . . Slashing . | . . . . . . . Piercing . | . . . . . . . Sneak Attacks . | . . . . . . . Combat Hostiles . | . . . . . . . Follow-up Attacks . | . . . . . . . Damage Inflicted 7449 | 77 1376 830 3933 577 656 . Guns 2478 | 76 723 141 1379 149 10 . Cannons 914 | . . . 778 124 12 . Explosions 3941 | . 653 652 1741 261 634 . Melee . | . . . . . . . Ramming 116 | 1 . 37 35 43 . . Kinetic 1275 | 76 471 54 515 149 10 . Thermal 2105 | . 252 87 1642 124 . . Explosive 3792 | . 653 652 1741 261 485 . Electromagnetic 161 | . . . . . 161 . Impact . | . . . . . . . Slashing . | . . . . . . . Piercing . | . . . . . . . Highest Corruption 6 | . . . 3 5 5 6 Average Corruption 4 | . . . 3 4 5 5 Corruption Purged . | . . . . . . . Effects 61 | . . . 8 19 34 . Message Errors 16 | . . . 1 6 9 . Matter Fused 17 | . . . 2 6 9 . Heat Flow Errors 5 | . . . 1 1 3 . Energy Discharges 9 | . . . . 4 5 . Data Loss (minor) 7 | . . . 3 1 3 . Data Loss (major) 1 | . . . . . 1 . Targeting Errors 6 | . . . 1 1 4 . Overload Shots . | . . . . . . . Overflow Damage 121 | . 3 41 34 28 15 . Projectiles 6 | . . . 6 . . . Explosions 115 | . 3 41 28 28 15 . Melee . | . . . . . . . Knockbacks . | . . . . . . . Impact . | . . . . . . . Kinetic . | . . . . . . . Secondary . | . . . . . . . Self-Inflicted Damage 447 | . 108 85 153 44 57 . Shots 18 | . 4 4 5 2 3 . Rammed 18 | 1 . 5 6 6 . . Targets Rammed 20 | 1 . 6 7 6 . . Kicked . | . . . . . . . Crushed 2 | . . 1 1 . . . Highest Temperature 294 | . 222 140 294 171 287 . Average Temperature 86 | . 106 67 70 96 137 . Received Heat Transfer 636 | . 228 18 390 . . . Siege Activations . | . . . . . . . Robots Corrupted 1 | . . . . . 1 . Combat Hostiles 1 | . . . . . 1 . Parts Fried . | . . . . . . . Impact Corruptions 1 | . . . . 1 . . Robots Melted . | . . . . . . . Combat Hostiles . | . . . . . . . Parts Melted 7 | . 2 . 5 . . . Heat Transferred 4551 | . 740 259 3330 222 . . Parts Sabotaged . | . . . . . . . Parts Stolen . | . . . . . . . Parts Stripped . | . . . . . . . Power Chain Reactions . | . . . . . . . Missiles Intercepted . | . . . . . . . Alert | -11 -10 -10 -9 -9 -9 -8 ------- Run | Scr Mat Min Mat Min Exi Min Peak Influence 612 | 5 471 261 612 234 . . Average Influence 180 | 1 249 66 282 86 . . Maximum Alert Level 2 | . 2 1 2 1 . . Low Security (%) 61 | 100 30 90 45 78 . 100 Level 1 23 | . 61 9 18 21 . . Level 2 14 | . 7 . 35 . . . Level 3 . | . . . . . . . Level 4 . | . . . . . . . Level 5 . | . . . . . . . High Security . | . . . . . . . Max Security . | . . . . . . . Squads Dispatched 13 | . 4 . 9 . . . Investigation 5 | . 2 . 3 . . . Extermination . | . . . . . . . Reinforcement 5 | . 2 . 3 . . . Assault 3 | . . . 3 . . . Garrison . | . . . . . . . Intercept . | . . . . . . . Construction Impeded . | . . . . . . . Haulers Reinforced . | . . . . . . . Stealth | -11 -10 -10 -9 -9 -9 -8 --------- Run | Scr Mat Min Mat Min Exi Min Distress Signals 8 | . 3 . 3 2 . . Communications Jammed . | . . . . . . . Distress Signals . | . . . . . . . Times Spotted 108 | . 26 8 58 8 7 1 Peak Tracking Total 6 | . 6 3 6 4 6 1 Tactical Retreats 4 | . 1 . 1 2 . . Traps | -11 -10 -10 -9 -9 -9 -8 ------- Run | Scr Mat Min Mat Min Exi Min Traps Triggered 3 | . 1 . 2 . . . Indirectly . | . . . . . . . Trap Hack Attempts . | . . . . . . . Triggered . | . . . . . . . Disarmed . | . . . . . . . Reprogrammed . | . . . . . . . Reused . | . . . . . . . Traps Extracted . | . . . . . . . Installed . | . . . . . . . Triggered . | . . . . . . . Machines | -11 -10 -10 -9 -9 -9 -8 ---------- Run | Scr Mat Min Mat Min Exi Min Machines Disabled 10 | . 4 . . . 6 . Max in Single Turn 4 | . 4 . . . 2 . Machines Sabotaged . | . . . . . . . Garrisons Compromised . | . . . . . . . Overloaded Fab Kills . | . . . . . . . Fab Network Shutdowns . | . . . . . . . Hacking | -11 -10 -10 -9 -9 -9 -8 --------- Run | Scr Mat Min Mat Min Exi Min Machines Accessed 19 | . 8 . 7 . 4 . Terminals 11 | . 6 . 5 . . . Fabricators . | . . . . . . . Repair Stations . | . . . . . . . Recycling Units 3 | . 2 . 1 . . . Scanalyzers 1 | . . . 1 . . . Garrison Access . | . . . . . . . Total Hacks 91 | . 20 . 23 . 48 . Successful 72 | . 8 . 16 . 48 . Failed 19 | . 12 . 7 . . . Catastrophic 1 | . . . 1 . . . Database Lockouts . | . . . . . . . Manual 24 | . 11 . 13 . . . Terminals 35 | . 18 . 17 . . . Fabricators . | . . . . . . . Repair Stations . | . . . . . . . Recycling Units 4 | . 2 . 2 . . . Scanalyzers 4 | . . . 4 . . . Garrison Access . | . . . . . . . Terminal Hacks 61 | . 5 . 8 . 48 . Record 48 | . . . . . 48 . Robot Analysis 4 | . 2 . 2 . . . Prototype ID Bank 1 | . . . 1 . . . Branch Access Points 1 | . 1 . . . . . Alert Level 1 | . . . 1 . . . Unreport Threat 1 | . . . 1 . . . Locate Traps 3 | . 2 . 1 . . . Hauler Manifests 1 | . . . 1 . . . Zone Layout 1 | . . . 1 . . . Fabricator Hacks . | . . . . . . . Repair Station Hacks . | . . . . . . . Recycling Unit Hacks . | . . . . . . . Scanalyzer 4 | . . . 4 . . . Insert Component 2 | . . . 2 . . . Analyze 2 | . . . 2 . . . Garrison Access Hacks . | . . . . . . . Unauthorized Hacks 16 | . 6 . 10 . . . Terminals 4 | . 1 . 3 . . . Track 1 | . . . 1 . . . Botnet 3 | . 1 . 2 . . . Fabricators . | . . . . . . . Repair Stations . | . . . . . . . Recycling Units 3 | . 2 . 1 . . . Tunnel 3 | . 2 . 1 . . . Scanalyzers . | . . . . . . . Garrison Access . | . . . . . . . Data Cores Recovered . | . . . . . . . Used . | . . . . . . . Hacking Detections 11 | . 6 . 5 . . . Full Trace Events . | . . . . . . . Feedback Events . | . . . . . . . Feedback Blocked . | . . . . . . . Robot Schematics Acquired . | . . . . . . . Robots Built . | . . . . . . . Matter . | . . . . . . . Time . | . . . . . . . Total Robot Build Rating . | . . . . . . . Part Schematics Acquired 2 | . . . 2 . . . Parts Built . | . . . . . . . Matter . | . . . . . . . Time . | . . . . . . . Total Part Build Rating . | . . . . . . . Parts Repaired . | . . . . . . . Time . | . . . . . . . Parts Recycled . | . . . . . . . Recycled Matter . | . . . . . . . Retrieved Matter . | . . . . . . . Retrieved Components . | . . . . . . . Parts Scanalyzed 2 | . . . 2 . . . Part Schematics Acquired 2 | . . . 2 . . . Parts Damaged . | . . . . . . . Bothacking | -11 -10 -10 -9 -9 -9 -8 ------------ Run | Scr Mat Min Mat Min Exi Min Used RIF Installer . | . . . . . . . Robots Hacked . | . . . . . . . Non-combat . | . . . . . . . Combat . | . . . . . . . Robot Hacks Applied . | . . . . . . . Relay Couplers Released . | . . . . . . . Robots Rewired . | . . . . . . . Allies Hacked . | . . . . . . . Hacks Repelled . | . . . . . . . Allies | -11 -10 -10 -9 -9 -9 -8 -------- Run | Scr Mat Min Mat Min Exi Min Total Allies 5 | . . . . 5 . . Largest Group 3 | . . . . 3 . . Highest-Rated Group 54 | . . . . 54 . . Highest-Rated Ally 31 | . . . . 31 . . Total Orders . | . . . . . . . Ally Attacks 6 | . . . . 6 . . Total Damage 72 | . . . . 72 . . Kills 2 | . . . . 2 . . Allies Corrupted . | . . . . . . . Allies Melted . | . . . . . . . Intel | -11 -10 -10 -9 -9 -9 -8 ------- Run | Scr Mat Min Mat Min Exi Min Robot Analysis Total 4 | . 2 . 2 . . . Derelict Logs Recovered 4 | . . 2 . 2 . . Drone Launches . | . . . . . . . Drone Recoveries . | . . . . . . . Exploration | -11 -10 -10 -9 -9 -9 -8 ------------- Run | Scr Mat Min Mat Min Exi Min Turns Passed 7217 | 103 951 1467 2277 1077 1285 57 Spaces Moved 3722 | 47 456 868 1031 612 671 37 Core 3 | 3 . . . . . . Treads 3632 | 44 456 868 1031 612 621 . Legs . | . . . . . . . Wheels 87 | . . . . . 50 37 Hover . | . . . . . . . Flight . | . . . . . . . Fastest Speed 50 | 50 160 160 145 165 130 120 Average Speed 164 | 152 161 160 169 165 169 128 Slowest Speed 240 | 160 180 160 180 165 240 130 Overloaded Moves . | . . . . . . . Propulsion Burnouts . | . . . . . . . Robots Hopped . | . . . . . . . Cave-ins Triggered . | . . . . . . . Exploration Rate (%) 70 | 6 91 98 97 99 92 9 Regions Visited 6 Branch Regions 4 Pre-discovered Areas 5 | . 2 1 1 . 1 . Known Exits Taken 1 | . 1 . . . . . Unknown Exits Taken 5 | 1 . 1 1 1 1 . Scrap Searched 3 | . . 1 . 1 . 1 Spaces Dug 44 | . . 18 9 17 . . Terrain Destroyed 340 | . 64 92 120 55 9 . Melee . | . . . . . . . Projectile 2 | . . . 2 . . . AOE 338 | . 64 92 118 55 9 . Actions | -11 -10 -10 -9 -9 -9 -8 --------- Run | Scr Mat Min Mat Min Exi Min Total 4328 | 65 561 911 1333 644 768 46 Wait 96 | . 19 4 65 1 7 . Move 3716 | 46 455 867 1030 611 670 37 Hop . | . . . . . . . Pick Up 61 | 6 13 4 26 1 10 1 Fast Attach 24 | 7 2 . 12 . 1 2 Attach 32 | . 1 2 11 2 14 2 Detach 9 | . . . 3 . 3 3 Swap 37 | . 6 3 19 4 4 1 Drop 46 | . 4 2 32 . 8 . Fire 287 | 5 61 23 128 19 51 . Melee . | . . . . . . . Ram . | . . . . . . . Kick . | . . . . . . . Crush 20 | 1 . 6 7 6 . . Escape Stasis . | . . . . . . . Rewire . | . . . . . . . Trap . | . . . . . . . Miscellaneous . | . . . . . . . Route ------- -11/Scrapyard -10/Materials (discovered 3 exits: *Mat x2 / *Min) -10/Mines (discovered 2 exits: *Mat x2) -9/Materials (discovered 6 exits: [*Mat x3] / [*Min x2] / [*Sto]) -9/Mines (discovered 3 exits: [*Mat x2] / *Exi) -9/Exiles (discovered 2 exits: [*Min x2]) -8/Mines History --------- Turn | Location | Event 48 | -11/Scrapyard | Discovered new exit (range 15) 104 | -11/Scrapyard | Entered Materials 316 | -10/Materials | Build established: Mutant 524 | -10/Materials | Discovered new exit (range 9) 737 | -10/Materials | Destroyed 7 combat bots 834 | -10/Materials | Core integrity fell below 50% 841 | -10/Materials | Discovered new exit (range 15) 912 | -10/Materials | Identified exit to Mines 1055 | -10/Materials | Entered Mines 1186 | -10/Mines | Learned location of Storage (-9) 1304 | -10/Mines | Discovered new exit (range 8) 1445 | -10/Mines | Discovered new exit (range 7) 1797 | -10/Mines | Found a hidden stash of uninstalled traps 1803 | -10/Mines | Assisted by bots powering up and referring to "LRC-V3" 1902 | -10/Mines | Destroyed YI-UF0 2279 | -10/Mines | Found a damaged Exp. Sensor Array with a note attached 2295 | -10/Mines | Found Prototype Device 2522 | -10/Mines | Entered Materials 2522 | -9/Materials | Evolved 2 slots: Utility x2 2838 | -9/Materials | Identified Exp. Sensor Array 3163 | -9/Materials | Discovered new exit (range 12) 3187 | -9/Materials | Discovered new exit (range 13) 3392 | -9/Materials | Discovered new exit (range 8) 3604 | -9/Materials | Discovered new exit (range 8) 3915 | -9/Materials | Discovered new exit (range 6) 4122 | -9/Materials | First assault squad dispatched 4244 | -9/Materials | Lost 3 parts (1n2w) 4535 | -9/Materials | Discovered new exit (range 15) 4553 | -9/Materials | Destroyed 7 combat bots 4799 | -9/Materials | Entered Mines 4806 | -9/Mines | Assisted by bots powering up and referring to "LRC-V3" 4851 | -9/Mines | Discovered new exit (range 5) 5010 | -9/Mines | Assembled infested the area 5021 | -9/Mines | Learned 2 Materials zone layouts 5217 | -9/Mines | Core integrity fell below 50% 5366 | -9/Mines | Deemed a non-threat by the Exiles lab entrance 5368 | -9/Mines | Discovered new exit (range 5) 5630 | -9/Mines | Discovered new exit (range 9) 5876 | -9/Mines | Entered Exiles 5921 | -9/Exiles | Met 8R-AWN 6077 | -9/Exiles | Met EX-HEX 6122 | -9/Exiles | Met EX-BIN 6259 | -9/Exiles | Met EX-DEC 6265 | -9/Exiles | Learned location of Zion (-7) 6350 | -9/Exiles | Visited The Gauntlet 6693 | -9/Exiles | Discovered new exit (range 14) 6844 | -9/Exiles | Build established: Hauler-Mutant 6947 | -9/Exiles | Attacked by the Exiles 7026 | -9/Exiles | Lost 3 parts (1p2w) 7077 | -9/Exiles | Core integrity fell below 20% 7119 | -9/Exiles | Lost 3 parts (1p1n1w) 7128 | -9/Exiles | Discovered new exit (range 14) 7161 | -9/Exiles | Entered Mines 7197 | -8/Mines | NK-0LA came to Exiles' defense 7218 | -8/Mines | Destroyed by NK-0LA with NK-0LA's Tesla Doomcannon Last Messages --------------- 07152_ HV Slug penetrates Wall. 07152_ Penetrated by HV Slug. 07152_ HV Slug penetrates Wall. A strange signal echoes through the mines. LOCATION=UNKNOWN GOAL=ESCAPE 07163_ Acquired Particle Cannon. 07185_ Searching scrap... 07185_ Found 50 Matter. 07185_ Found Hrd. Medium Armor Plating. 07185_ Found Tractor Beam. 07185_ Found Lgt. EM Pulse Cannon. 07186_ Acquired 50 matter. 07188_ Acquired Lgt. EM Pulse Cannon. 07191_ Acquired Hrd. Medium Armor Plating. 07197_ NK-0LA: "I came as fast as I could... Wait, it was you!" 07210_ Lgt. EM Pulse Cannon destroyed. 07210_ Beam Rifle destroyed. 07214_ Discarded Armor Integrity Analyzer. 07216_ Hrd. Medium Armor Plating destroyed. Map ----- +----------------------------------------------------+ | ??????????????????????????????????? | | ??????????????????????????????????? | | ??????????????????????????????????? | | ??????????????????????????????????? | | ??????????????????????????????????? | | ??????????????????????????????????? | | ??????????? ???????????????????? | | ??????????? ?????????????????? | | ????????????# ????????????????? | | ?????????????# ??????????????? | | ????????????## #######??????? | | ????????????# #??????? | | ????????? #??????? | | ????????????????# #### #??????? | | ????????????????????????#! #??????? | | ????????????????????????# #??????? | | ????????????????????????# #??????? | | ????????????????????????#x #??????? | | ????????????????????????# #??????? | | ????????????????????????# #??????? | | ????????????????????????# #??????? | | ???????????????????????## ##?????? | | ???????????????????????# ##????? | | ???????????????????????# #????? | | ???????????????????????## #????? | | ???????????????????????##@ ##????? | | ??????????????????????## = #?????? | | ?????????????????????## ##????? | | ?????????????????# ### ! ###??? | | ?????????????????# #??? | | ?????????????????# #??? | | ?????????????????######## #??? | | ????????????????????????## ##??? | | ?????????????????????????## ##???? | | ??????????????????????????####????? | | ??????????????????????????????????? | | ??????????????????????????????????? | | ??????????????????????????????????? | | ??????????????????????????????????? | | ??????????????????????????????????? | | ??????????????????????????????????? | | ??????????????????????????????????? | | ??????????????????????????????????? | | ??????????????????????????????????? | | ??????????????????????????????????? | | ??????????????????????????????????? | | ??????????????????????????????????? | | ??????????????????????????????????? | | ??????????????????????????????????? | | ??????????????????????????????????? | +----------------------------------------------------+ Best States ------------- Heat Dissipation 50 Energy Generation 14 Energy Capacity 280 Matter Stores 300 Matter Capacity 300 Sight Range 16 Robot Scan Range 30 Terrain Scan Density 10 Armor Coverage 300 Resistance: TH 10 Evasion (%) 40 Armor Integrity Analysis 33 Recoil Reduction 2 Item Schematics ----------------- Exp. Sensor Array | -9/Materials | Scanalyzed Lrg. Storage Unit | -9/Materials | Scanalyzed Robot Schematics ------------------ None Fabricated ------------ Nothing Alien Tech Used ----------------- None Achievements -------------- None Challenges ------------ None Game ------ Seed HelicalDispersionSink Manual? 0 Play Time 00:58:44 Cumulative 1103.0 hours Start 2020.03.21 @ 22:11:49 End 2020.03.21 @ 23:09:43 Sessions 1 Manual Loads 0 Difficulty Rogue Special Mode None Game No. 385 Rogue 385 Adventurer 0 Explorer 0 Win Type - Total 250 Types 214/6/11/3/3/2/11 Lore% 99 Gallery% 100 Achievement% 93 Wizard Run 0 Options --------- ASCII 0 Keyboard 0 Movement Numpad Keybinds 0 Fullscreen 1 Font 18/Terminus Map View 76x50 Tactical HUD 1 Map Filters NONE Filters NONE Steam 1 RUN: 7fa33a3c-7d3d-4d6e-9ccc-b9f4fcc8d426